bitfinex-derivatives/quotes_SOLF0:USTF0_20251023
["timestamp","ask_amount","ask_price","bid_price","bid_amount"]
[1761232220667,1.97,191.32,191.16,2.66]
[1761232220866,1.97,191.32,191.19,7.3658]
[1761232221065,1.97,191.32,191.2,2.66]
[1761232221272,1.97,191.37,191.2,2.66]
[1761232221672,1.97,191.37,191.21,2.66]
[1761232222265,1.97,191.37,191.16,6.63809328]
[1761232222266,1.97,191.37,191.22,4.7051]
[1761232222467,1.97,191.37,191.23,2.66]
[1761232222877,1.97,191.36,191.19,2.66]
[1761232223082,1.97,191.35,191.19,2.66]
[1761232223375,1.97,191.35,191.21,2.66]
[1761232223982,1.97,191.35,191.23,2.66]
[1761232224570,196.48,191.39,191.25,2.66]
[1761232224766,1.96,191.38,191.25,2.66]
[1761232225975,6.63809328,191.5,191.29,2.66]
[1761232226171,1.96,191.45,191.29,2.66]
[1761232226376,1.96,191.45,191.3,2.66]
[1761232226675,4.0050019,191.44,191.3,2.66]
[1761232226876,1.96,191.39,191.26,4.7041]
[1761232227080,5.9650019,191.39,191.27,2.66]
[1761232227679,4.0050019,191.41,191.27,2.66]
[1761232228276,4.0050019,191.41,191.26,2.66]
[1761232228579,4.0050019,191.41,191.28,2.66]
[1761232228882,1.96,191.36,191.21,2.72]
[1761232229072,4.0050019,191.33,191.21,2.72]
[1761232229472,1.96,191.36,191.21,2.72]
[1761232229674,1.96,191.34,191.21,2.72]
[1761232230180,1.96,191.34,191.21,7.4253]
[1761232230478,1.96,191.34,191.22,4.53686716]
[1761232230688,1.96,191.34,191.23,2.72]
[1761232231385,5.9650019,191.34,191.23,2.72]
[1761232231975,5.9650019,191.34,191.16,4.0050019]
[1761232231976,1.86,191.36,191.26,4.7041]
[1761232232186,1.96,191.44,191.27,4.54152022]
[1761232232379,4.0050019,191.43,191.29,2.72]
[1761232232584,5.9650019,191.39,191.29,2.72]
[1761232232785,1.96,191.38,191.29,2.72]
[1761232233882,4.0050019,191.43,191.29,2.72]
[1761232234083,4.0050019,191.51,191.35,2.72]
[1761232234290,30.38,191.61,191.37,2.72]
[1761232234291,4.0050019,191.47,191.37,2.72]
[1761232234795,4.0050019,191.47,191.37,7.4212]
[1761232235085,4.0050019,191.54,191.38,4.54106705]
[1761232235291,1.96,191.55,191.4,2.72]
[1761232235483,1.96,191.55,191.43,2.72]
[1761232236178,4.0050019,191.52,191.35,2.72]
[1761232236382,4.0050019,191.54,191.41,2.72]
[1761232236687,4.0050019,191.62,191.41,2.72]
[1761232236688,4.0050019,191.57,191.41,2.72]
[1761232236893,5.9650019,191.56,191.41,2.72]
[1761232237188,1.96,191.56,191.42,2.72]
[1761232237491,1.96,191.56,191.44,2.72]
[1761232237686,1.96,191.56,191.38,2.72]
[1761232237885,1.96,191.56,191.4,2.72]
[1761232238091,1.96,191.56,191.42,2.72]
[1761232238290,1.96,191.56,191.45,2.72]
[1761232238788,5.9650019,191.52,191.39,2.72]
[1761232238983,4.0050019,191.51,191.39,2.72]
[1761232239483,9.6650019,191.56,191.44,2.72]
[1761232239794,4.0050019,191.56,191.44,2.72]
[1761232240087,1.96,191.55,191.44,2.72]
[1761232240291,4.0050019,191.52,191.44,2.72]
[1761232240491,4.0050019,191.52,191.36,2.72]
[1761232240891,1.96,191.55,191.45,2.72]
[1761232241583,4.0050019,191.57,191.45,2.72]
[1761232241790,1.96,191.6,191.45,2.72]
[1761232241985,4.0050019,191.57,191.45,2.72]
[1761232242293,4.0050019,191.57,191.46,2.72]
[1761232242592,5.22,191.63,191.46,2.72]
[1761232242895,7.18,191.63,191.5,2.72]
[1761232243091,1.96,191.62,191.5,2.72]
[1761232243290,4.0050019,191.59,191.5,2.72]
[1761232243789,4.0050019,191.6,191.5,2.72]
[1761232243994,5.9650019,191.6,191.5,2.72]
[1761232244182,1.96,191.59,191.46,4.699]
[1761232244382,1.96,191.59,191.46,7.419]
[1761232244786,1.96,191.59,191.47,2.72]
[1761232245092,1.96,191.59,191.48,7.4186]
[1761232245394,5.9650019,191.64,191.49,2.72]
[1761232245694,1.96,191.63,191.49,2.72]
[1761232246198,1.96,191.63,191.5,4.698]
[1761232246494,1.96,191.63,191.5,7.418]
[1761232246696,5.9650019,191.6,191.5,2.72]
[1761232246999,1.96,191.59,191.5,2.72]
[1761232247690,4.0050019,191.62,191.5,2.72]
[1761232248292,4.0050019,191.62,191.38,73.1288]
[1761232248293,4.0050019,191.62,191.51,2.72]
[1761232248881,5.9650019,191.64,191.51,2.72]
[1761232249087,5.9650019,191.64,191.52,4.6975]
[1761232249287,5.9650019,191.64,191.52,7.4175]
[1761232249691,1.96,191.63,191.52,7.4175]
[1761232249890,1.96,191.63,191.53,2.72]
[1761232250394,1.96,191.59,191.48,2.72]
[1761232251204,36.23,191.68,191.43,2.72]
[1761232251205,1.96,191.55,191.43,2.72]
[1761232251501,19.7750019,191.62,191.43,2.72]
[1761232251502,4.0050019,191.58,191.43,2.72]
[1761232252001,4.0050019,191.58,191.35,62.0]
[1761232252002,1.96,191.57,191.41,2.72]
[1761232252496,1.96,191.57,191.45,7.4194]
[1761232252685,1.96,191.57,191.46,2.72]
[1761232253296,1.96,191.57,191.47,2.72]
[1761232253888,1.96,191.57,191.4,0.39546]
[1761232253889,1.04,191.56,191.4,0.39546]
[1761232254087,19.7750019,191.62,191.4,0.39546]
[1761232254088,4.0050019,191.48,191.4,0.39546]
[1761232254599,1.96,191.5,191.4,0.39546]
[1761232254600,1.96,191.5,191.4,3.11546]
[1761232255299,34.9250019,191.55,191.4,3.11546]
[1761232255496,1.96,191.54,191.4,3.11546]
[1761232255890,1.96,191.5,191.4,0.39546]
[1761232256197,5.9650019,191.47,191.4,0.39546]
[1761232256501,1.96,191.47,191.4,0.39546]
[1761232257198,1.96,191.44,191.4,0.39546]
[1761232257601,1.96,191.43,191.4,0.39546]
[1761232257802,1.96,191.43,191.23,2.72]
[1761232257803,1.56,191.4,191.23,2.72]
[1761232258093,1.56,191.5,191.28,2.72]
[1761232258300,1.56,191.46,191.32,2.72]
[1761232258892,1.56,191.46,191.34,2.72]
[1761232259803,1.56,191.51,191.36,2.72]
[1761232260499,1.56,191.69,191.43,2.72]
[1761232260700,1.56,191.57,191.43,2.72]
[1761232260890,1.56,191.57,191.44,2.72]
[1761232261090,5.5650019,191.63,191.44,2.72]
[1761232261294,1.56,191.62,191.45,2.72]
[1761232261494,1.56,191.62,191.5,2.72]
[1761232261691,4.0050019,191.65,191.5,2.72]
[1761232262000,5.5650019,191.65,191.5,2.72]
[1761232262202,1.56,191.65,191.5,2.72]
[1761232262609,1.56,191.62,191.5,2.72]
[1761232262796,212.37,191.7,191.45,4.69164692]
[1761232262797,1.56,191.58,191.45,2.72]
[1761232263099,1.56,191.54,191.4,2.72]
[1761232263602,1.56,191.59,191.43,4.69164692]
[1761232263795,1.56,191.59,191.44,2.72]
[1761232264692,21.3,191.65,191.43,4.69164692]
[1761232264693,21.3,191.65,191.49,2.72]
[1761232264892,1.56,191.66,191.5,2.72]
[1761232265195,1.56,191.73,191.57,2.72]
[1761232265705,1.56,191.78,191.61,2.72]
[1761232265908,5.5650019,191.77,191.61,2.72]
[1761232266098,1.56,191.76,191.61,2.72]
[1761232266292,42.62,191.8,191.58,4.69164692]
[1761232266293,4.0050019,191.73,191.58,4.69164692]
[1761232266494,1.56,191.72,191.58,2.72]
[1761232266795,1.56,191.69,191.54,4.69164692]
[1761232266996,1.56,191.65,191.52,2.72]
[1761232267304,1.56,191.6,191.47,2.72]
[1761232267497,5.5650019,191.58,191.47,2.72]
[1761232267701,1.56,191.58,191.47,2.72]
[1761232268009,1.56,191.58,191.42,2.72]
[1761232268392,5.5650019,191.56,191.42,2.72]
[1761232268595,1.56,191.55,191.42,2.72]
[1761232268796,5.5650019,191.52,191.39,4.69164692]
[1761232269003,5.5650019,191.52,191.38,2.72]
[1761232269209,1.56,191.52,191.38,2.72]
[1761232269509,4.0050019,191.57,191.42,4.69164692]
[1761232269704,4.0050019,191.61,191.44,2.72]
[1761232270006,5.5650019,191.57,191.44,2.72]
[1761232270198,4.0050019,191.57,191.44,2.72]
[1761232270400,4.6971,191.55,191.44,2.72]
[1761232270601,1.56,191.52,191.38,2.72]
[1761232271299,1.56,191.57,191.42,2.72]
[1761232271498,4.0050019,191.6,191.47,4.6988]
[1761232271800,1.56,191.63,191.5,2.72]
[1761232272606,1.56,191.62,191.5,2.72]
[1761232273503,1.56,191.65,191.5,2.72]
[1761232274306,1.56,191.61,191.45,4.72940171]
[1761232274609,1.56,191.53,191.38,2.72]
[1761232274912,1.56,191.49,191.38,2.72]
[1761232275095,1.56,191.49,191.34,4.72940171]
[1761232275296,1.56,191.45,191.33,2.72]
[1761232275500,1.56,191.45,191.33,7.44940171]
[1761232275701,1.56,191.44,191.33,2.72]
[1761232276004,1.56,191.44,191.28,4.72940171]
[1761232276311,1.56,191.44,191.3,2.72]
[1761232276510,1.56,191.44,191.32,2.72]
[1761232276705,1.56,191.44,191.25,13.54886738]
[1761232276706,5.5650019,191.41,191.29,4.72940171]
[1761232277007,50.2250019,191.45,191.31,2.72]
[1761232277213,1.56,191.44,191.31,7.44940171]
[1761232277398,1.56,191.44,191.32,4.72940171]
[1761232277709,130.49678547,191.6,191.22,12.28926624]
[1761232277710,5.5650019,191.5,191.34,2.72]
[1761232277907,5.5650019,191.5,191.36,2.72]
[1761232278115,1.56,191.49,191.36,2.72]
[1761232278409,1.56,191.45,191.33,4.72940171]
[1761232278599,1.56,191.45,191.3,9.08257698]
[1761232278600,4.0050019,191.42,191.32,4.72940171]
[1761232278909,4.0050019,191.42,191.27,4.72940171]
[1761232278910,1.56,191.41,191.27,4.72940171]
[1761232279316,1.56,191.41,191.25,2.72]
[1761232279317,1.56,191.41,191.26,7.44940171]
[1761232279703,1.56,191.37,191.26,2.72]
[1761232279910,1.56,191.37,191.23,108.71460781]
[1761232280111,1.56,191.37,191.24,2.72]
[1761232280307,4.0050019,191.38,191.24,2.72]
[1761232280706,1.56,191.42,191.25,4.72940171]
[1761232280913,1.56,191.42,191.26,2.72]
[1761232281506,1.56,191.41,191.26,2.72]
[1761232281807,1.56,191.38,191.26,2.72]
[1761232282015,1.56,191.37,191.23,112.695008]
[1761232282204,1.56,191.37,191.23,103.9852061]
[1761232282405,1.56,191.36,191.23,103.9852061]
[1761232283810,1.56,191.36,191.22,2.72]
[1761232284408,1.56,191.36,191.17,2.72]
[1761232284615,1.56,191.32,191.17,2.72]
[1761232285612,1.56,191.38,191.19,2.66]
[1761232285811,1.56,191.37,191.23,2.66]
[1761232286709,4.0050019,191.42,191.26,4.0050019]
[1761232286906,4.0050019,191.42,191.27,2.66]
[1761232287112,1.56,191.41,191.27,2.66]
[1761232287317,1.56,191.37,191.22,2.66]
[1761232287707,1.56,191.37,191.26,2.66]
[1761232287918,1.56,191.43,191.29,4.0050019]
[1761232288121,1.56,191.43,191.3,2.66]
[1761232288415,1.56,191.42,191.3,2.66]
[1761232289007,1.56,191.42,191.25,7.4444]
[1761232289207,1.56,191.42,191.23,2.74]
[1761232289920,1.56,191.42,191.27,2.74]
[1761232290307,1.56,191.42,191.27,4.7036]
[1761232290611,1.56,191.48,191.31,2.74]
[1761232290810,1.56,191.48,191.36,4.7016]
[1761232291113,1.56,191.52,191.37,2.74]
[1761232291520,1.34,191.53,191.35,2.74]
[1761232291716,1.34,191.53,191.34,68.59509156]
[1761232291717,1.34,191.53,191.39,2.74]
[1761232292123,1.34,191.53,191.45,2.74]
[1761232292721,4.6961,191.59,191.47,2.74]
[1761232292924,1.56,191.62,191.47,2.74]
[1761232293122,1.56,191.61,191.47,2.74]
[1761232293425,6.2566,191.57,191.41,2.74]
[1761232293720,1.56,191.61,191.41,2.74]
[1761232293923,6.59509156,191.62,191.41,2.74]
[1761232293924,4.697,191.55,191.41,2.74]
[1761232294122,1.56,191.55,191.41,2.74]
[1761232294513,4.6981,191.51,191.41,2.74]
[1761232294725,1.56,191.55,191.41,2.74]
[1761232297026,4.6979,191.52,191.41,2.74]
[1761232297329,1.56,191.53,191.41,2.74]
[1761232297520,4.6983,191.5,191.41,2.74]
[1761232297929,1.56,191.53,191.41,2.74]
[1761232298126,4.6988,191.48,191.34,20.75709156]
[1761232298332,4.6988,191.48,191.35,2.74]
[1761232298625,1.56,191.48,191.35,2.74]
[1761232298834,4.6997,191.44,191.35,2.74]
[1761232299031,1.56,191.48,191.35,2.74]
[1761232299334,4.7,191.43,191.35,2.74]
[1761232299526,22.36509156,191.49,191.29,2.74]
[1761232299725,6.59509156,191.45,191.29,2.74]
[1761232300521,22.36509156,191.45,191.29,2.74]
[1761232301327,6.59509156,191.45,191.29,2.74]
[1761232302020,22.36509156,191.45,191.29,2.74]
[1761232303025,6.59509156,191.45,191.25,2.74]
[1761232303229,22.36509156,191.45,191.25,2.74]
[1761232303728,33.836,191.52,191.25,2.74]
[1761232303729,9.396,191.52,191.26,4.7041]
[1761232303928,22.36509156,191.46,191.25,2.74]
[1761232304130,6.59509156,191.42,191.25,2.74]
[1761232304528,8.36,191.45,191.25,2.74]
[1761232304925,24.13,191.45,191.25,2.74]
[1761232306033,6.59509156,191.42,191.25,2.74]
[1761232306229,14.95509156,191.45,191.25,4.7043]
[1761232306532,14.95509156,191.45,191.27,2.74]
[1761232306837,8.36,191.45,191.27,2.74]
[1761232307131,8.36,191.45,191.28,2.74]
[1761232309328,24.13,191.45,191.28,2.74]
[1761232311228,30.72509156,191.45,191.28,2.74]
[1761232311630,26.0,191.44,191.28,2.74]
[1761232311833,6.59509156,191.45,191.28,2.74]
[1761232312030,42.06,191.45,191.29,2.74]
[1761232313237,42.06,191.45,191.29,7.4432]
[1761232313439,42.06,191.45,191.29,2.74]
[1761232314545,42.06,191.45,191.27,2.74]
[1761232315041,42.06,191.45,191.28,2.74]
[1761232315042,57.83,191.45,191.28,2.74]
[1761232315641,6.59509156,191.44,191.28,2.74]
[1761232315940,15.77,191.43,191.27,2.74]
[1761232316643,46.06,191.42,191.27,2.74]
[1761232317036,15.7860456,191.67,191.26,6.97]
[1761232317037,22.36509156,191.38,191.26,6.97]
[1761232317236,46.06,191.37,191.26,6.97]
[1761232317842,61.83,191.37,191.26,6.97]
[1761232318343,6.59509156,191.38,191.26,6.97]
[1761232318534,26.76,191.37,191.26,6.97]
[1761232318730,15.77,191.36,191.26,6.97]
[1761232319236,42.53,191.37,191.26,6.97]
[1761232320737,6.59509156,191.34,191.26,6.97]
[1761232321141,22.36509156,191.34,191.26,6.97]
[1761232321542,6.59509156,191.34,191.26,6.97]
[1761232322336,22.36509156,191.34,191.26,6.97]
[1761232322838,26.76,191.37,191.26,6.97]
[1761232323038,46.34,191.36,191.26,6.97]
[1761232323242,62.11,191.36,191.26,6.97]
[1761232324140,15.77,191.33,191.26,1.21]
[1761232324344,6.59509156,191.34,191.13,2.73]
[1761232324345,15.77,191.27,191.13,2.73]
[1761232325145,15.77,191.27,191.08,2.73]
[1761232325741,6.59509156,191.2,191.05,4.75342448]
[1761232325947,62.13,191.19,191.02,2.73]
[1761232326445,15.77,191.06,190.96,2.73]
[1761232326650,62.13,191.05,190.88,2.73]
[1761232326851,46.6,191.04,190.88,2.73]
[1761232327147,46.6,191.03,190.88,2.73]
[1761232327337,6.59509156,191.11,190.88,2.73]
[1761232327542,46.6,191.1,190.88,2.73]
[1761232327953,6.59509156,191.07,190.88,2.73]
[1761232328247,6.59509156,191.07,190.89,6.47]
[1761232328445,6.59509156,191.07,190.89,9.2]
[1761232328639,6.59509156,191.07,190.9,2.73]
[1761232328839,6.59509156,191.03,190.9,2.73]
[1761232329240,68.96509156,191.1,190.9,2.73]
[1761232329444,6.59509156,191.03,190.9,2.73]
[1761232329738,46.6,191.02,190.9,2.73]
[1761232329942,46.6,191.01,190.89,6.47]
[1761232330246,44.26,191.0,190.9,2.73]
[1761232331550,44.26,191.0,190.89,6.47]
[1761232332548,44.26,191.0,190.89,9.2]
[1761232334847,6.59509156,191.01,190.9,2.73]
[1761232335051,11.9,191.0,190.9,2.73]
[1761232335240,11.9,190.99,190.9,2.73]
[1761232336648,21.3,190.99,190.9,2.73]
[1761232338856,6.59509156,191.05,190.9,2.73]
[1761232339047,25.26,191.04,190.9,2.73]
[1761232339245,6.59509156,191.12,190.92,4.7125]
[1761232339453,5.94,191.11,190.93,2.73]
[1761232339655,6.59509156,191.14,190.94,2.73]
[1761232339856,5.94,191.13,190.94,2.73]
[1761232340046,5.94,191.13,190.97,2.73]
[1761232340249,11.06,191.13,190.97,2.73]
[1761232341053,19.56,191.15,190.99,2.73]
[1761232341355,35.33,191.15,190.9,2.73]
[1761232341562,6.59509156,191.13,190.94,2.73]
[1761232342255,41.77509156,191.16,190.96,2.73]
[1761232342455,44.57509156,191.16,190.96,2.73]
[1761232343054,5.236,191.39,190.96,2.73]
[1761232343255,16.07122054,191.4,191.04,6.59509156]
[1761232343454,6.59509156,191.32,191.1,2.73]
[1761232343757,6.59509156,191.28,191.1,2.73]
[1761232344148,6.02,191.27,191.1,2.73]
[1761232344659,6.59509156,191.23,191.1,2.73]
[1761232347758,20.06,191.26,190.95,2.64]
[1761232347759,6.59509156,191.19,190.95,2.64]
[1761232347955,6.59509156,191.15,190.97,2.64]
[1761232348154,6.59509156,191.15,190.99,2.64]
[1761232348751,4.01862737,191.12,190.99,2.64]
[1761232351056,4.01862737,191.18,190.99,2.64]
[1761232351256,4.01862737,191.18,190.9,62.0]
[1761232351257,4.01862737,191.18,191.01,2.72]
[1761232352262,4.01862737,191.18,191.02,2.72]
[1761232353167,4.01862737,191.18,191.04,2.72]
[1761232353757,4.01862737,191.14,191.04,2.72]
[1761232354457,4.01862737,191.14,190.97,4.711]
[1761232354658,4.01862737,191.14,190.99,2.72]
[1761232355056,4.01862737,191.14,190.99,7.4308]
[1761232355259,4.01862737,191.14,191.01,2.72]
[1761232356065,4.01862737,191.14,191.02,2.72]
[1761232356260,6.88,191.22,191.02,2.72]
[1761232356461,4.01862737,191.16,191.02,2.72]
[1761232357664,4.01862737,191.03,190.9,2.72]
[1761232357965,17.6,191.06,190.92,2.72]
[1761232358167,17.6,191.07,190.94,2.72]
[1761232359162,20.54,191.07,190.94,2.72]
[1761232359762,15.77,191.14,190.94,2.72]
[1761232359967,4.01862737,191.1,190.96,2.72]
[1761232360168,4.01862737,191.1,190.97,4.60514552]
[1761232360366,4.01862737,191.1,190.98,7.32514552]
[1761232360665,4.01862737,191.1,190.98,2.72]
[1761232361066,21.08,191.12,190.98,2.72]
[1761232361275,21.08,191.12,191.0,2.72]
[1761232361470,21.08,191.12,190.96,4.01862737]
[1761232361471,21.08,191.12,191.01,7.32870604]
[1761232361669,4.01862737,191.09,190.96,2.72]
[1761232361870,4.01862737,191.07,190.89,6.47]
[1761232362063,4.01862737,191.18,190.9,2.72]
[1761232362269,4.01862737,191.07,190.92,2.72]
[1761232362573,4.01862737,191.03,190.94,2.72]
[1761232362874,4.01862737,190.98,190.89,6.47]
[1761232363071,15.77,190.98,190.89,6.47]
[1761232363262,4.01862737,190.94,190.89,6.47]
[1761232364776,4.01862737,190.95,190.89,6.47]
[1761232366476,4.01862737,190.96,190.89,6.47]
[1761232366675,4.01862737,190.9,190.79,2.72]
[1761232366977,4.01862737,190.9,190.8,4.62748825]
[1761232367178,19.78862737,190.96,190.81,7.34748825]
[1761232367371,19.78862737,190.96,190.82,4.62748825]
[1761232367673,19.78862737,190.96,190.83,4.62748825]
[1761232367878,19.78862737,190.96,190.84,4.62748825]
[1761232368179,46.98,190.95,190.85,7.34748825]
[1761232368372,4.01862737,190.96,190.86,4.62748825]
[1761232368569,4.01862737,190.96,190.87,4.62748825]
[1761232368771,4.01862737,190.96,190.88,4.62748825]
[1761232369078,4.01862737,190.96,190.89,4.62748825]
[1761232369276,4.01862737,191.01,190.9,7.34748825]
[1761232369474,46.98,191.0,190.91,4.62748825]
[1761232369772,46.98,191.0,190.9,2.72]
[1761232369985,46.98,191.0,190.89,6.95]
[1761232370177,46.98,191.0,190.9,4.63265693]
[1761232370371,4.01862737,190.99,190.89,6.95]
[1761232370567,4.01862737,190.99,190.9,4.63459539]
[1761232370780,4.01862737,190.99,190.89,6.95]
[1761232370976,4.01862737,190.99,190.9,4.63385648]
[1761232371273,4.01862737,190.99,190.89,6.95]
[1761232371274,4.01862737,190.99,190.91,4.63333252]
[1761232371475,46.98,191.0,190.92,4.63333252]
[1761232371781,46.98,191.0,190.93,4.63333252]
[1761232372074,50.93862737,190.99,190.89,6.95]
[1761232372279,46.92,190.98,190.9,4.63317795]
[1761232372578,46.92,190.98,190.89,6.95]
[1761232376181,62.69,190.98,190.89,6.95]
[1761232376480,4.01862737,190.97,190.89,6.95]
[1761232376876,15.77,190.97,190.89,6.95]
[1761232377080,4.01862737,190.96,190.89,6.95]
[1761232377680,19.78862737,190.96,190.89,6.95]
[1761232378679,4.01862737,190.96,190.89,6.95]
[1761232378880,46.82,190.95,190.89,6.95]
[1761232380173,4.01862737,190.96,190.89,6.95]
[1761232380378,46.78,190.94,190.89,6.95]
[1761232381485,4.01862737,190.96,190.89,6.95]
[1761232381677,46.76,190.95,190.89,6.95]
[1761232381884,15.77,190.99,190.89,6.95]
[1761232382184,46.76,190.98,190.89,6.95]
[1761232382573,46.76,190.98,190.9,2.59]
[1761232382881,46.76,190.99,190.9,2.59]
[1761232383284,46.76,190.99,190.91,2.59]
[1761232383874,66.49862737,190.99,190.89,6.95]
[1761232384179,62.48,190.99,190.89,6.95]
[1761232384586,15.72,190.96,190.89,6.95]
[1761232386280,19.73862737,190.98,190.89,6.95]
[1761232386686,15.72,190.98,190.89,6.95]
[1761232386989,15.72,190.96,190.89,6.95]
[1761232388282,46.76,190.99,190.89,6.95]
[1761232388283,15.72,190.92,190.89,6.95]
[1761232388480,15.72,190.9,190.89,6.95]
[1761232388891,46.68,190.91,190.89,6.95]
[1761232389089,4.01862737,190.95,190.89,6.95]
[1761232389296,46.68,190.9,190.89,6.95]
[1761232389886,46.68,190.9,190.89,9.54]
[1761232391090,46.68,190.9,190.89,6.95]
[1761232392894,4.01862737,190.95,190.89,6.95]
[1761232393186,46.64,190.94,190.89,6.95]
[1761232393578,63.4,190.94,190.89,6.95]
[1761232393784,63.4,190.94,190.76,2.59]
[1761232393785,19.73862737,190.91,190.76,2.59]
[1761232393985,4.01862737,190.87,190.76,2.59]
[1761232394283,46.64,190.86,190.69,2.59]
[1761232394484,62.36,190.86,190.7,7.22720981]
[1761232394792,19.73862737,190.83,190.71,4.6376617]
[1761232394986,19.73862737,190.83,190.7,2.59]
[1761232395297,4.01862737,190.83,190.7,2.59]
[1761232395488,46.66,190.82,190.7,2.59]
[1761232396386,46.66,190.82,190.71,7.12]
[1761232396588,46.66,190.82,190.71,9.71]
[1761232397700,4.01862737,190.78,190.71,7.12]
[1761232399001,17.26,190.77,190.72,2.59]
[1761232399201,4.01862737,190.81,190.72,2.59]
[1761232399202,17.26,190.76,190.72,2.59]
[1761232399598,17.26,190.76,190.73,4.6414404]
[1761232399599,16.28222317,190.76,190.73,4.6414404]
[1761232399904,33.68,190.82,190.75,2.59]
[1761232400606,33.68,190.82,190.71,7.12]
[1761232400800,33.68,190.82,190.72,4.64414577]
[1761232401105,33.68,190.82,190.71,7.12]
[1761232401301,33.68,190.82,190.72,4.64708736]
[1761232401500,33.68,190.82,190.71,7.12]
[1761232401801,33.68,190.82,190.73,2.59]
[1761232401993,4.01862737,190.8,190.71,7.12]
[1761232402197,4.01862737,190.8,190.72,4.65034049]
[1761232402392,4.01862737,190.8,190.71,9.71]
[1761232402803,33.68,190.82,190.71,9.71]
[1761232403109,37.69862737,190.82,190.71,9.71]
[1761232404203,4.01862737,190.83,190.73,2.59]
[1761232404712,15.6,190.82,190.73,2.59]
[1761232405098,15.6,190.82,190.74,4.64727715]
[1761232405300,15.6,190.82,190.75,4.64727715]
[1761232405605,15.6,190.82,190.73,2.59]
[1761232405907,15.6,190.82,190.74,7.53080529]
[1761232406109,15.6,190.82,190.74,2.88]
[1761232407302,15.6,190.82,190.75,7.53218279]
[1761232407607,15.6,190.82,190.76,7.53318812]
[1761232407798,15.6,190.82,190.76,2.88]
[1761232408399,15.6,190.82,190.72,2.88]
[1761232408605,15.6,190.82,190.73,4.65523608]
[1761232408805,15.6,190.82,190.71,7.12]
[1761232409106,15.6,190.82,190.72,4.65589721]
[1761232409294,15.6,190.82,190.71,7.12]
[1761232409498,15.6,190.82,190.72,4.65595352]
[1761232409698,4.01862737,190.79,190.71,7.12]
[1761232410003,31.32,190.82,190.71,7.12]
[1761232410199,4.01862737,190.8,190.71,7.12]
[1761232410798,22.35895626,190.81,190.71,7.12]
[1761232410998,6.63895626,190.81,190.71,7.12]
[1761232412610,31.32,190.82,190.72,2.84]
[1761232412611,15.6,190.82,190.72,2.84]
[1761232412912,31.32,190.82,190.72,2.84]
[1761232413303,31.32,190.82,190.71,7.12]
[1761232413811,6.63895626,190.79,190.71,7.12]
[1761232414309,22.12101689,190.79,190.71,7.12]
[1761232414613,6.63895626,190.79,190.71,7.12]